bitfinex/quotes_ETHUSD_20260209
["timestamp","ask_amount","ask_price","bid_price","bid_amount"]
[1770625911902,0.06814476,2040.4,2040.0,1.22543785]
[1770625912114,0.06814476,2041.0,2040.0,1.22543785]
[1770625912425,0.1024,2041.6,2040.0,1.22543785]
[1770625912426,0.0735222,2041.3,2040.0,1.22543785]
[1770625912742,0.25534508,2042.1,2039.9,3.7757173]
[1770625912897,0.25534508,2042.1,2041.0,3.7757173]
[1770625913098,0.25403968,2042.2,2041.0,3.7757173]
[1770625913312,0.0735222,2042.1,2040.2,3.7757173]
[1770625913524,0.0735222,2042.1,2040.4,3.7757173]
[1770625913828,0.0735222,2041.8,2040.4,3.7757173]
[1770625914002,0.0735222,2042.1,2040.5,0.02900759]
[1770625914332,0.0735222,2041.5,2039.9,3.7757173]
[1770625914643,1.82530114,2042.8,2040.7,3.7757173]
[1770625915015,0.0735222,2042.2,2040.7,3.7757173]
[1770625915418,0.0735222,2041.9,2040.7,3.7757173]
[1770625916501,0.0735222,2041.9,2040.7,5.00078172]
[1770625916732,0.0735222,2042.2,2040.7,5.00078172]
[1770625917463,4.96867465,2042.9,2040.9,0.0735222]
[1770625917464,3.04915512,2042.8,2040.9,0.0735222]
[1770625917730,3.04915512,2042.8,2040.8,3.7757173]
[1770625917731,0.0735222,2042.6,2040.8,3.7757173]
[1770625918245,1.85940194,2043.3,2040.8,3.8492395]
[1770625918444,0.0735222,2042.9,2040.8,3.8492395]
[1770625918632,0.0735222,2042.6,2041.1,3.7757173]
[1770625918831,0.0735222,2042.3,2041.1,3.7757173]
[1770625920346,0.0735222,2042.0,2041.1,3.7757173]
[1770625920643,0.0735222,2042.3,2040.8,3.7757173]
[1770625920805,0.0735222,2042.2,2040.8,3.7512073]
[1770625921920,0.0735222,2041.8,2040.6,1.22510477]
[1770625922121,1.22397598,2042.6,2040.7,3.7757173]
[1770625922372,1.22397598,2042.6,2040.9,3.8492395]
[1770625922518,4.89531956,2042.8,2041.1,1.22482974]
[1770625922916,1.91659246,2043.0,2041.2,3.7757173]
[1770625923221,1.22351098,2043.3,2041.6,3.7757173]
[1770625924332,0.0735222,2043.2,2041.6,3.7757173]
[1770625924535,1.2239902,2042.5,2041.1,5.00054704]
[1770625924719,4.89539718,2042.8,2041.2,3.7757173]
[1770625925266,1.22381045,2042.8,2041.2,3.7757173]
[1770625925956,1.22378551,2042.9,2041.4,3.7757173]
[1770625926241,1.29730771,2042.9,2041.4,3.7757173]
[1770625926751,0.0735222,2042.6,2041.4,5.00033053]
[1770625927316,0.0735222,2042.3,2041.0,3.7757173]
[1770625927527,0.0735222,2042.3,2041.4,1.22464968]
[1770625928035,0.0735222,2042.6,2041.4,1.22464968]
[1770625928356,0.0735222,2041.9,2040.9,1.22493668]
[1770625928543,0.0735222,2041.9,2040.6,4.90044548]
[1770625928745,0.0735222,2041.9,2040.1,3.7757173]
[1770625928746,1.22458976,2041.5,2040.1,3.7757173]
[1770625928920,0.0735222,2041.0,2040.0,0.001]
[1770625929228,0.0735222,2040.8,2040.0,0.001]
[1770625929432,0.0735222,2040.3,2039.2,1.22594033]
[1770625929745,0.0735222,2039.9,2038.8,4.90480928]
[1770625930063,0.0735222,2040.6,2039.1,3.7757173]
[1770625930550,0.0735222,2040.9,2039.1,3.7757173]
[1770625930755,0.0735222,2041.4,2039.5,3.7757173]
[1770625930928,0.0735222,2041.4,2039.7,3.7757173]
[1770625931267,0.0735222,2041.3,2039.9,3.7757173]
[1770625931757,0.0735222,2041.2,2039.9,3.7757173]
[1770625932456,0.0735222,2040.9,2039.5,3.7757173]
[1770625932671,1.48178474,2042.0,2040.6,10.51812224]
[1770625932963,0.0735222,2043.6,2041.6,3.7757173]
[1770625933121,0.0735222,2043.8,2042.1,3.7757173]
[1770625933652,0.002,2042.7,2042.1,3.7757173]
[1770625934752,0.002,2042.9,2042.1,3.7757173]
[1770625934957,0.002,2042.9,2042.4,3.7757173]
[1770625935254,1.22297231,2044.2,2042.4,3.7757173]
[1770625935450,15.41001148,2044.3,2042.3,1.22411007]
[1770625935451,1.22243411,2045.1,2043.0,3.78220609]
[1770625935751,1.22243411,2045.1,2042.4,3.78220609]
[1770625935752,0.0735222,2044.6,2042.4,3.78220609]
[1770625935930,0.0735222,2044.6,2042.6,3.78220609]
[1770625936324,0.1759222,2044.3,2042.6,3.78220609]
[1770625936525,0.0735222,2043.9,2042.2,1.22413507]
[1770625936725,12.60801853,2043.8,2041.6,3.78220609]
[1770625936932,0.0735222,2043.3,2041.6,3.78220609]
[1770625937132,0.0735222,2043.0,2041.6,3.78220609]
[1770625937362,0.0735222,2043.3,2041.6,3.78220609]
[1770625938046,0.0735222,2043.6,2041.8,3.67909687]
[1770625938249,0.0735222,2043.3,2041.8,3.67909687]
[1770625938848,0.0735222,2043.3,2041.7,1.22443497]
[1770625938849,0.0735222,2043.0,2041.7,1.22443497]
[1770625939049,0.0735222,2043.0,2041.2,3.67909687]
[1770625939253,0.0735222,2042.6,2040.8,0.003]
[1770625939553,0.0735222,2042.6,2041.2,1.22476327]
[1770625939744,0.0735222,2042.6,2041.3,1.22466873]
[1770625939946,0.0735222,2042.6,2040.9,4.89977029]
[1770625940144,0.0735222,2042.6,2041.0,4.89951365]
[1770625940366,0.0735222,2042.1,2040.8,4.90710442]
[1770625940537,0.0735222,2041.8,2040.8,0.003]
[1770625940735,0.0735222,2042.3,2041.3,1.22467136]
[1770625940936,1.29767045,2042.3,2040.8,4.90285781]
[1770625941151,0.1024,2042.7,2040.9,3.67909687]
[1770625941338,0.0735222,2042.5,2040.9,3.67909687]
[1770625942150,0.0735222,2042.2,2040.9,3.67909687]
[1770625942334,0.0735222,2042.5,2040.9,3.67909687]
[1770625942541,0.0735222,2042.8,2040.9,3.67909687]
[1770625942742,0.0735222,2042.8,2041.1,3.67909687]
[1770625942943,0.0735222,2042.8,2041.3,3.67909687]
[1770625942944,1.29735521,2042.8,2041.3,3.67909687]
[1770625943861,0.0735222,2042.5,2041.3,3.67909687]
[1770625944065,0.0735222,2042.2,2040.8,3.68209687]
[1770625944366,0.0735222,2041.7,2040.8,0.003]
[1770625944546,0.0735222,2041.4,2040.3,3.67909687]
[1770625944766,0.0735222,2040.8,2039.9,1.22549447]
[1770625944952,0.0735222,2041.3,2039.8,4.90470482]
[1770625945288,0.0735222,2040.7,2039.1,3.67909687]
[1770625945499,0.0735222,2040.0,2038.5,3.67909687]
[1770625945675,0.0735222,2040.7,2039.2,4.90377606]
[1770625945972,0.0735222,2040.7,2039.2,4.90385186]
[1770625946173,0.0735222,2040.6,2039.4,3.67909687]
[1770625946502,0.0735222,2040.9,2039.7,4.90246429]
[1770625946653,0.0735222,2041.5,2039.9,3.67909687]
[1770625946853,1.22464975,2041.4,2041.2,0.001]
[1770625947059,1.29790983,2041.9,2040.1,3.67909687]
[1770625947357,1.29790983,2041.9,2040.3,0.001]
[1770625947358,0.0735222,2041.3,2040.3,0.001]
[1770625948161,0.0735222,2041.0,2039.0,1.54482532]
[1770625948361,0.0735222,2041.3,2039.9,1.22554698]
[1770625948760,0.0735222,2041.4,2039.9,1.22554698]
[1770625948974,1.22440983,2041.8,2040.1,3.67909687]
[1770625949177,0.1759222,2042.2,2040.2,3.75261907]
[1770625949362,1.2977035,2042.2,2040.2,3.67909687]
[1770625949572,0.0735222,2041.9,2040.2,3.67909687]
[1770625949972,0.0735222,2041.6,2040.2,3.67909687]
[1770625950459,0.0735222,2042.2,2040.2,3.67909687]
[1770625950705,0.0735222,2041.9,2040.2,3.67909687]
[1770625950862,0.0735222,2041.6,2040.3,1.22531]
[1770625951062,1.29808713,2041.6,2040.3,1.22531]
[1770625951459,0.0735222,2041.5,2040.3,1.22531]
[1770625951663,0.0735222,2041.2,2040.2,4.90444904]
[1770625951864,0.0735222,2041.5,2040.2,1.22535399]
[1770625952065,0.0735222,2042.4,2040.5,3.702467]
[1770625952260,0.0735222,2042.4,2040.6,3.75261907]
[1770625952462,1.22387036,2042.7,2040.8,3.67909687]
[1770625952975,0.002,2042.8,2041.3,3.75261907]
[1770625953169,0.002,2043.0,2041.8,3.67909687]
[1770625953369,0.002,2043.0,2041.9,12.98145587]
[1770625953681,0.002,2043.0,2042.0,3.67909687]
[1770625954385,0.0735222,2043.6,2042.2,3.67909687]
[1770625954682,0.0735222,2043.9,2042.2,3.67909687]
[1770625954895,0.0735222,2043.6,2042.2,3.67909687]
[1770625955092,0.0735222,2043.9,2042.4,3.67909687]
[1770625955497,0.0735222,2043.6,2042.4,3.67909687]
[1770625955673,1.29668295,2043.9,2042.4,3.67909687]
[1770625956179,0.0735222,2043.9,2042.4,3.67909687]
[1770625956376,1.2230672,2044.1,2042.4,3.67909687]
[1770625956596,0.0735222,2044.0,2042.4,3.67909687]
[1770625956801,0.0735222,2043.7,2042.4,3.67909687]
[1770625956997,0.0735222,2043.4,2042.4,3.67909687]
[1770625957298,0.0735222,2043.1,2042.0,1.22428744]
[1770625957499,0.0735222,2043.4,2042.4,1.22404969]
[1770625957979,0.0735222,2043.4,2042.3,1.22407184]
[1770625958296,0.0735222,2043.4,2042.4,1.22404409]
[1770625958697,0.0735222,2043.4,2042.0,3.67909687]
[1770625958698,0.0735222,2043.1,2042.0,3.67909687]
[1770625958902,1.29679415,2043.7,2042.4,1.22402594]
[1770625959099,1.29679415,2043.7,2042.3,8.57529741]
[1770625959100,0.0735222,2043.7,2042.3,8.57529741]
[1770625959291,1.22327831,2043.7,2042.3,8.57529741]
[1770625959471,0.0735222,2043.3,2042.2,1.22414854]
[1770625959677,0.002,2043.4,2042.2,4.90324541]
[1770625960378,0.0735222,2043.3,2042.2,1.22415792]
[1770625960579,0.0735222,2043.3,2042.2,1.22414654]
[1770625960877,0.0735222,2043.0,2041.9,4.89734732]
[1770625961077,1.29721776,2043.0,2041.8,1.22440983]
[1770625961379,0.0735222,2042.7,2041.8,1.22440983]
[1770625961597,0.0735222,2043.2,2041.8,1.22440983]
[1770625961903,1.22545291,2043.4,2041.8,4.9035067]
[1770625962106,0.0735222,2043.2,2041.8,4.9035067]
[1770625962311,1.22545291,2043.4,2041.8,4.9035067]
[1770625962519,0.002,2043.4,2042.2,3.67909687]
[1770625962721,0.002,2043.4,2042.3,3.75261907]
[1770625962915,0.002,2043.4,2042.3,3.67909687]
[1770625963089,0.002,2043.4,2042.4,4.903147]
[1770625963516,0.002,2043.4,2042.5,3.67909687]
[1770625963898,0.002,2043.4,2042.2,1.22416509]
[1770625964089,0.0735222,2043.0,2042.0,1.22424251]
[1770625964290,0.0735222,2043.3,2042.1,1.22422927]
[1770625964600,0.0735222,2043.0,2041.8,3.67909687]
[1770625964796,0.0735222,2042.7,2041.4,0.001]
[1770625965017,0.0735222,2042.7,2041.4,4.8995965]
[1770625965224,1.29707139,2043.3,2041.7,3.79146962]
[1770625965808,1.29707139,2043.3,2041.4,4.899569]
[1770625965809,0.0735222,2042.6,2041.4,0.001]
[1770625966117,0.0735222,2042.5,2041.4,0.001]
[1770625966889,0.0735222,2042.2,2041.4,0.001]
[1770625967384,1.29769479,2042.2,2041.4,0.001]
[1770625970313,1.29769479,2042.2,2041.5,0.003]
[1770625971132,0.0735222,2041.9,2041.5,0.003]
[1770625971312,1.29788619,2041.9,2041.5,0.003]
[1770625972134,1.22432652,2042.0,2041.5,0.003]
[1770625972329,1.22426583,2042.1,2041.5,0.003]
[1770625972704,1.22426583,2042.1,2041.6,0.001]
[1770625974532,1.29769224,2042.2,2041.6,0.001]
[1770625975463,1.29769226,2042.2,2041.6,0.001]
[1770625975831,0.0735222,2042.2,2041.6,0.001]
[1770625976032,0.0735222,2041.8,2041.6,0.001]
[1770625976233,0.0735222,2041.1,2040.0,3.79146962]
[1770625976466,0.0735222,2040.4,2039.4,4.90337723]
[1770625976646,0.0735222,2040.7,2039.6,5.0171701]
[1770625976851,0.0735222,2040.4,2039.6,3.79146962]
[1770625977131,0.0735222,2039.8,2039.0,1.22604784]
[1770625977331,0.0735222,2039.8,2038.7,5.01768111]
[1770625977552,0.0735222,2039.8,2038.8,4.90470121]
[1770625977751,0.0735222,2040.5,2038.9,3.79146962]
[1770625977945,0.0735222,2040.2,2038.9,3.79146962]
[1770625978545,0.0735222,2040.5,2038.9,3.79146962]
[1770625979164,0.0735222,2040.5,2038.8,1.22621149]
[1770625979371,0.0735222,2039.3,2038.4,0.1369698]
[1770625979568,0.0735222,2039.3,2037.3,12.03992291]
[1770625979569,0.0735222,2038.3,2037.9,1.22672011]
[1770625979935,0.05268101,2038.3,2037.9,1.22672011]
[1770625980171,0.0735222,2039.0,2038.0,3.79146962]
[1770625980370,1.22571732,2039.7,2038.2,3.79146962]
[1770625980692,0.0735222,2038.4,2037.5,5.01846227]
[1770625980835,0.1024,2039.1,2037.0,3.79146962]
[1770625981040,0.0735222,2037.8,2037.0,3.79146962]
[1770625981480,0.0735222,2039.2,2037.4,3.79146962]
[1770625981773,0.0735222,2039.4,2037.6,3.79146962]
[1770625981942,0.0735222,2039.4,2038.0,3.79146962]
[1770625982276,0.0735222,2040.1,2038.4,3.79146962]
[1770625982575,1.29868165,2040.6,2038.9,4.963444]
[1770625982774,0.0735222,2040.5,2039.2,3.79146962]
[1770625982939,4.9733765,2040.9,2039.2,3.79146962]
[1770625983142,1.29847197,2040.9,2039.2,3.79146962]
[1770625983344,1.29847197,2040.9,2039.4,3.79146962]
[1770625983751,4.8988843,2041.3,2039.4,3.79146962]
[1770625983953,0.0735222,2041.0,2039.4,3.79146962]
[1770625984552,0.0735222,2041.0,2039.6,3.79146962]
[1770625984759,0.0735222,2040.7,2039.6,3.79146962]
[1770625985281,0.0735222,2041.0,2039.6,3.79146962]
[1770625985582,0.0735222,2041.0,2039.7,5.01714006]
[1770625985747,1.22474163,2041.3,2039.8,3.79146962]
[1770625985947,0.0735222,2041.1,2039.8,3.79146962]
[1770625986589,0.0735222,2041.4,2039.8,3.79146962]
[1770625986962,0.0735222,2041.5,2039.8,3.79146962]
[1770625987779,0.0735222,2041.9,2040.2,3.79146962]
[1770625988280,1.29769822,2042.2,2040.4,3.79146962]
[1770625988477,1.29769822,2042.2,2040.6,3.79146962]
[1770625988478,0.0735222,2042.2,2040.6,3.79146962]
[1770625988678,0.002,2042.8,2041.0,3.79146962]
[1770625988882,0.002,2042.8,2041.6,3.79146962]
[1770625989055,0.002,2043.0,2042.1,3.79146962]
[1770625989253,0.002,2043.6,2042.5,3.79146962]
[1770625989653,0.0755222,2043.6,2042.6,3.79146962]
[1770625989858,0.0735222,2043.2,2042.1,3.79146962]
[1770625990352,0.0735222,2043.2,2042.1,5.01569812]
[1770625990553,0.0735222,2042.9,2042.1,3.79146962]
[1770625990781,0.0735222,2043.2,2042.3,1.22407153]
[1770625990967,0.0735222,2043.2,2042.2,1.22413483]
[1770625991279,0.0735222,2042.9,2041.7,4.89780792]
[1770625991482,0.0735222,2043.2,2042.4,1.2240441]
[1770625991688,0.0735222,2043.2,2041.9,3.79146962]
[1770625991894,0.0735222,2042.9,2041.9,3.79146962]
[1770625992282,0.0735222,2043.1,2041.9,3.79146962]
[1770625993190,0.002,2043.4,2041.9,3.79146962]
[1770625993488,0.0735222,2043.0,2041.9,3.79146962]
[1770625993663,0.0735222,2043.0,2042.1,3.79146962]
[1770625993863,0.002,2043.4,2042.1,3.79146962]
[1770625995604,0.002,2043.4,2042.2,1.22417001]
[1770625995773,0.002,2043.4,2042.3,3.99812532]
[1770625996671,0.0735222,2043.3,2042.3,3.99812532]
[1770625996993,0.002,2043.4,2042.3,3.99812532]
[1770625997180,0.0735222,2043.2,2042.1,1.22418663]
[1770625997691,0.0735222,2043.2,2042.1,5.09206084]
[1770625998597,1.29629326,2043.2,2042.1,5.09206084]
[1770625998777,0.0735222,2042.9,2042.1,5.09206084]
[1770625998979,0.0735222,2042.9,2041.8,1.22437633]
[1770625999181,0.0735222,2042.9,2041.1,3.86787421]
[1770625999182,0.0735222,2042.6,2041.1,3.86787421]
[1770625999391,0.0735222,2042.3,2041.1,3.86787421]
[1770625999782,1.22417001,2042.2,2041.1,3.86787421]
[1770625999995,0.0735222,2042.0,2041.1,3.86787421]
[1770626000305,0.0735222,2042.0,2041.1,1.22482636]
[1770626000613,0.0735222,2042.0,2040.9,3.86787421]
[1770626000799,0.0735222,2042.0,2041.0,1.2248764]
[1770626000999,0.0735222,2041.7,2040.9,3.86787421]
[1770626001199,0.0735222,2041.4,2040.4,3.86787421]
[1770626001400,0.0735222,2041.4,2039.9,1.22550327]
[1770626001401,0.0735222,2041.1,2039.9,1.22550327]
[1770626001590,0.0735222,2041.1,2040.0,3.86787421]
[1770626002325,0.0735222,2040.8,2040.0,3.86787421]
[1770626003401,1.29835944,2041.1,2040.0,3.86787421]
[1770626003616,0.0735222,2041.1,2040.0,3.86787421]
[1770626003811,0.0735222,2041.1,2040.1,5.09330433]
[1770626004008,1.22470974,2041.3,2040.1,3.86787421]
[1770626004816,1.22470974,2041.3,2040.1,3.86307421]
[1770626004988,0.0735222,2040.8,2039.6,3.86887421]
[1770626005389,0.0735222,2040.5,2039.6,0.001]
[1770626005808,0.0735222,2040.1,2039.6,0.001]
[1770626006998,0.0735222,2039.8,2039.6,0.001]
[1770626007210,0.0735222,2039.8,2038.6,0.003]
[1770626007398,0.0735222,2039.3,2038.5,0.001]
[1770626007604,0.0735222,2039.0,2037.6,3.86787421]
[1770626008001,0.0735222,2038.7,2037.6,3.86787421]
[1770626008329,0.0735222,2038.7,2036.4,1.22761891]
[1770626008330,0.0735222,2037.7,2036.4,1.22761891]
[1770626008490,0.0735222,2037.7,2036.7,1.22747078]
[1770626008491,0.0735222,2037.4,2036.7,1.22747078]
[1770626008824,13.08574142,2038.7,2036.7,1.22745329]
[1770626009024,13.08574142,2038.7,2036.6,3.86787421]
[1770626009025,0.0735222,2037.4,2036.6,3.86787421]
[1770626009190,0.0735222,2037.1,2036.0,3.86787421]
[1770626009397,0.0735222,2037.1,2035.5,10.56741236]
[1770626009398,0.0735222,2037.0,2035.5,3.86787421]
[1770626009626,0.0735222,2037.2,2036.0,1.22786497]
[1770626009801,0.0735222,2037.6,2035.9,3.86787421]
[1770626010202,10.64093456,2038.3,2035.4,4.98650358]
[1770626010203,0.0735222,2037.7,2036.1,3.86787421]
[1770626010405,0.0735222,2037.3,2036.2,3.86787421]
[1770626010623,0.0735222,2037.6,2036.2,3.86787421]
[1770626010931,0.0735222,2037.3,2036.2,3.86787421]
[1770626011117,0.0735222,2037.3,2035.6,3.86787421]
[1770626011316,10.64093456,2038.1,2035.7,16.8221382]
[1770626011498,0.0735222,2037.7,2036.0,3.86787421]
[1770626011695,0.0735222,2038.1,2036.2,3.86787421]
[1770626011899,1.30017382,2038.1,2036.4,3.86787421]
[1770626012109,0.0735222,2038.1,2036.4,3.86787421]
[1770626012314,0.0735222,2038.0,2036.6,3.86787421]
[1770626012522,1.30001541,2038.4,2036.6,3.86787421]
[1770626013012,0.0735222,2038.7,2037.0,3.86787421]
[1770626013213,1.29981326,2038.7,2037.0,3.86787421]
[1770626013421,0.0735222,2039.0,2037.2,3.86787421]
[1770626013640,0.0735222,2039.3,2037.2,3.86787421]
[1770626013825,0.0735222,2038.6,2037.4,3.86787421]
[1770626014638,1.29969744,2038.9,2037.4,3.86787421]
[1770626014840,0.0735222,2038.6,2037.4,3.86787421]
[1770626015061,0.0735222,2037.9,2036.9,3.86787421]
[1770626015359,0.0735222,2037.9,2036.4,3.86787421]
[1770626015360,0.0735222,2037.6,2036.4,3.86787421]
[1770626015554,0.0735222,2037.6,2036.6,1.2275312]
[1770626015727,1.30028412,2037.9,2036.6,3.86787421]
[1770626016055,0.0735222,2037.3,2036.0,3.86787421]
[1770626016238,0.0735222,2037.3,2036.4,1.22765011]
[1770626016560,0.0735222,2037.9,2036.6,3.86787421]
[1770626017055,1.30010585,2038.2,2036.6,3.86787421]
[1770626017433,1.30010585,2038.2,2036.1,4.91062659]
[1770626017434,0.0735222,2037.3,2036.0,3.86787421]
[1770626017754,0.0735222,2037.2,2036.1,1.22783753]
[1770626018451,0.0735222,2037.1,2036.2,3.86787421]
[1770626019233,0.0735222,2036.8,2036.2,3.86787421]
[1770626019452,0.0735222,2037.1,2036.2,3.86787421]
[1770626019839,0.0735222,2037.3,2036.2,5.09562495]
[1770626020043,0.0735222,2037.6,2036.3,3.86787421]
[1770626020243,0.0735222,2037.3,2036.3,3.86787421]
[1770626020444,0.0735222,2037.0,2035.8,3.86887421]
[1770626020648,0.0735222,2036.7,2035.8,3.86887421]
[1770626020865,0.0735222,2036.9,2036.0,1.22789458]
[1770626021157,0.0735222,2036.9,2035.8,3.86887421]
[1770626021347,0.0735222,2036.6,2035.8,3.86887421]
[1770626021543,0.0735222,2036.5,2035.8,0.001]
[1770626021744,0.0735222,2036.8,2035.8,0.001]
[1770626021963,0.0735222,2037.0,2035.8,0.001]
[1770626022148,0.0735222,2037.0,2035.8,3.86887421]
[1770626022532,0.0735222,2037.7,2036.0,3.86787421]
[1770626022769,0.0735222,2037.6,2036.2,3.86787421]
[1770626022952,0.0735222,2037.9,2036.2,3.86787421]
[1770626023139,0.0735222,2038.2,2036.2,3.86787421]
[1770626023334,0.0735222,2037.9,2036.2,3.86787421]
[1770626023559,0.0735222,2037.6,2036.2,3.86787421]
[1770626023858,0.0735222,2037.8,2036.4,3.86787421]
[1770626024028,0.0735222,2037.7,2036.4,3.86787421]
[1770626024234,0.0735222,2037.7,2036.4,3.81787421]
[1770626024662,1.30013845,2038.2,2036.4,3.81787421]
[1770626024833,1.30013845,2038.2,2036.3,1.22771693]
[1770626024834,1.30013845,2038.2,2036.6,3.86787421]
[1770626025238,0.0735222,2037.9,2036.6,3.86787421]
[1770626025462,1.22639195,2038.5,2036.6,3.86787421]
[1770626025654,0.0735222,2038.3,2036.6,3.86787421]
[1770626026057,0.0735222,2038.0,2036.8,4.09269478]
[1770626026547,0.0735222,2038.0,2035.9,4.91178352]
[1770626026548,0.0735222,2037.4,2036.4,1.22761615]
[1770626026862,0.0735222,2037.7,2036.5,5.32024677]
[1770626027050,0.0735222,2037.4,2036.5,4.09269478]
[1770626027368,0.0735222,2037.4,2036.5,5.3202569]
[1770626027858,0.0735222,2037.7,2036.6,1.22751356]
[1770626028063,1.30043527,2037.7,2036.5,5.32025031]
[1770626028261,0.0735222,2038.0,2036.6,4.09269478]
[1770626028560,0.0735222,2037.7,2036.6,4.09269478]
[1770626028763,0.0735222,2037.4,2036.6,4.09269478]
[1770626029069,0.0735222,2037.4,2035.8,0.001]
[1770626029070,0.0735222,2037.1,2036.1,4.09269478]
[1770626029233,0.0735222,2037.1,2035.8,0.001]
[1770626029434,0.0735222,2036.8,2036.0,4.09369478]
[1770626029633,0.0735222,2036.8,2036.0,0.001]
[1770626030051,0.0735222,2036.8,2036.5,0.003]
[1770626030253,1.30094222,2036.8,2036.5,0.003]
[1770626030452,1.30093804,2036.8,2036.5,0.003]
[1770626030668,1.30094288,2036.8,2036.5,0.003]
[1770626031182,0.0735222,2037.4,2036.5,0.003]
[1770626031183,2.46097924,2038.4,2036.5,0.003]
[1770626031478,0.002,2038.4,2037.4,4.09269478]
[1770626031781,1.22846421,2038.4,2037.4,4.09269478]
[1770626031946,1.22846421,2038.4,2036.6,4.09269478]
[1770626032144,0.0755222,2038.4,2036.8,4.09269478]
[1770626032341,0.002,2038.4,2037.0,4.09269478]
[1770626032545,0.0735222,2038.3,2037.0,4.09269478]
[1770626032864,0.002,2038.4,2037.0,4.09269478]
[1770626033954,0.002,2038.4,2037.2,4.09269478]
[1770626034164,0.002,2038.4,2037.4,4.09269478]
[1770626036279,0.002,2038.4,2037.6,4.09269478]
[1770626037882,1.22600937,2039.2,2037.6,4.09269478]
[1770626038083,1.29953157,2039.2,2037.7,5.31956821]
[1770626038254,0.0735222,2038.9,2037.7,4.09269478]
[1770626038458,0.0735222,2038.6,2037.7,4.09269478]
[1770626038657,0.0735222,2038.9,2037.7,4.09269478]
[1770626038658,0.0735222,2038.5,2037.7,4.09269478]
[1770626039078,0.0735222,2038.5,2037.5,1.22696156]
[1770626039292,0.0735222,2038.5,2037.0,4.09269478]
[1770626039590,0.0735222,2037.9,2036.8,4.09269478]
[1770626039777,0.0735222,2037.7,2036.8,4.09269478]
[1770626040493,0.0735222,2037.7,2036.7,1.22743355]
[1770626040660,1.2285725,2038.2,2036.9,4.09269478]
[1770626040855,0.0735222,2038.1,2036.9,4.09269478]
[1770626041083,0.002,2038.2,2036.9,4.09269478]
[1770626041288,0.002,2038.2,2037.0,12.21979]
[1770626041479,0.002,2038.2,2037.1,4.09269478]
[1770626041875,0.002,2038.2,2037.3,4.09269478]
[1770626042076,0.002,2038.2,2037.4,1.22705408]
[1770626042293,0.002,2038.2,2037.5,4.09269478]
[1770626043266,0.002,2038.4,2037.7,4.09269478]
[1770626043570,0.0735222,2039.8,2037.7,4.16621698]
[1770626043884,1.29916845,2039.8,2038.1,4.09269478]
[1770626044502,0.0735222,2040.1,2038.3,4.09269478]
[1770626044806,0.0735222,2040.1,2038.2,1.22657246]
[1770626044807,0.0735222,2040.6,2038.9,4.09269478]
[1770626045103,0.0735222,2040.8,2039.3,4.09269478]
[1770626045664,0.0735222,2040.1,2038.8,4.09269478]
[1770626045974,0.0735222,2039.8,2038.8,4.09269478]
[1770626046807,1.29913931,2039.8,2038.8,4.09269478]
[1770626046974,0.0735222,2040.1,2038.8,4.09269478]
[1770626047600,1.29889226,2040.2,2038.9,4.09269478]
[1770626047791,1.29889226,2040.2,2038.9,3.09269478]
[1770626047991,0.0735222,2039.9,2038.4,4.09269478]
[1770626048175,0.0735222,2039.6,2038.4,4.09269478]
[1770626048367,1.29928473,2039.6,2038.4,5.31913179]
[1770626048572,1.22561035,2039.8,2038.4,5.31914009]
[1770626049404,1.22557029,2039.9,2038.5,4.09269478]
[1770626049703,1.22524995,2040.4,2038.7,4.09269478]
[1770626050017,4.90028647,2040.7,2039.1,4.09269478]
[1770626050018,1.22506982,2040.7,2039.1,4.09269478]
[1770626050218,1.22506982,2040.7,2039.2,4.09269478]
[1770626050393,4.90016515,2040.8,2039.4,4.09269478]
[1770626050592,0.0735222,2040.6,2039.4,4.09269478]
[1770626051191,0.0735222,2039.9,2038.5,4.09269478]
[1770626051392,0.0735222,2039.6,2038.5,4.09269478]
[1770626051588,1.29835194,2041.2,2039.5,4.09269478]
[1770626051820,0.0735222,2041.2,2039.7,4.09269478]
[1770626052317,1.22482974,2041.1,2039.7,4.09269478]
[1770626052519,4.8980819,2041.7,2039.8,4.09269478]
[1770626052690,4.8980819,2041.7,2039.9,4.09269478]
[1770626053016,4.9716041,2041.7,2040.0,4.09269478]
[1770626053197,4.8980819,2041.7,2040.1,12.62251878]
[1770626053399,4.8980819,2041.7,2040.1,4.09269478]
[1770626053599,4.8980819,2041.7,2040.3,4.09269478]
[1770626054117,0.002,2040.6,2040.3,4.09269478]
[1770626054317,4.8980819,2041.7,2040.3,4.09269478]
[1770626054495,4.89739948,2042.0,2040.5,4.09269478]
[1770626054695,0.002,2041.5,2040.5,4.09269478]
[1770626054918,4.89715964,2042.3,2040.3,1.22526623]
[1770626054919,4.89715964,2042.4,2041.0,4.09269478]
[1770626055127,0.0735222,2042.3,2041.0,4.09269478]
[1770626055294,0.0735222,2042.6,2041.0,4.09269478]
[1770626055619,0.0735222,2042.6,2041.2,3.89561058]
[1770626056296,1.22375055,2042.9,2041.4,3.89561058]
[1770626056490,1.22375055,2042.9,2041.5,1.22456209]
[1770626056818,1.22570332,2043.0,2041.8,3.89561058]
[1770626057199,1.29922552,2043.0,2040.7,3.89561058]
[1770626057519,0.0735222,2042.7,2041.1,3.90802856]
[1770626057996,0.0735222,2042.7,2041.1,5.13285328]
[1770626058397,0.0735222,2042.7,2041.2,3.90802856]
[1770626058398,1.22393028,2042.6,2041.2,3.90802856]
[1770626059727,4.76669581,2042.7,2041.2,3.90802856]
[1770626059908,1.22393028,2042.6,2041.2,3.90802856]
[1770626060104,0.0735222,2042.4,2041.2,3.90802856]
[1770626060518,1.22411007,2042.3,2041.2,3.90802856]
[1770626060825,1.22411007,2042.3,2040.9,3.90802856]
[1770626060826,0.0735222,2042.3,2040.9,3.90802856]
[1770626061126,0.0735222,2042.3,2041.0,1.2248754]
[1770626061302,1.29733265,2042.8,2041.2,5.13278046]
[1770626061894,1.29733265,2042.8,2041.3,3.90802856]
[1770626062826,1.29733265,2042.8,2041.3,5.13271759]
[1770626063407,1.29733265,2042.8,2041.4,3.90802856]
[1770626063408,1.22381045,2042.8,2041.4,3.90802856]
[1770626063626,0.002,2043.0,2041.6,3.90802856]
[1770626063800,1.22569127,2043.0,2041.6,3.90802856]
[1770626064929,0.002,2043.0,2041.7,3.90802856]
[1770626066520,0.0735222,2042.5,2040.8,3.90802856]
[1770626066828,0.1024,2042.8,2041.4,0.001]
[1770626067031,0.0735222,2042.6,2041.4,0.001]
[1770626067231,1.22387036,2042.7,2041.4,3.90902856]
[1770626067434,1.22387036,2042.7,2041.4,0.001]
[1770626067603,0.0735222,2042.6,2041.4,0.001]
[1770626067801,0.0735222,2042.3,2041.4,0.001]
[1770626068626,0.0735222,2042.6,2041.4,0.001]
[1770626069014,1.2239902,2042.5,2041.4,0.001]
[1770626069206,0.0735222,2042.3,2041.4,0.001]
[1770626069721,1.2239902,2042.5,2041.4,0.001]
[1770626069924,1.2239902,2042.5,2041.4,3.90902856]
[1770626070232,1.22387036,2042.7,2041.4,3.90902856]